fUSD/lending_fUSD_20250904
["ID","MTS","AMOUNT","RATE_DAILY","PERIOD"]
[383512967,1756967457009,-410.02302958,0.00022191,2]
[383512968,1756967457018,-400.0,0.00022191,2]
[383512969,1756967457025,-400.0,0.00022191,2]
[383512970,1756967457033,-400.0,0.00022191,2]
[383512971,1756967457041,-400.0,0.00022191,2]
[383512972,1756967457049,-400.0,0.00022191,2]
[383512973,1756967457058,-400.0,0.00022191,2]
[383512974,1756967457066,-400.0,0.00022191,2]
[383512975,1756967457075,-400.0,0.00022191,2]
[383512976,1756967457083,-405.5092846,0.00022191,2]
[383512977,1756967457092,-400.0,0.00022191,2]
[383512978,1756967457101,-400.0,0.00022191,2]
[383512979,1756967457110,-400.0,0.00022191,2]
[383512980,1756967457119,-400.0,0.00022191,2]
[383512981,1756967457128,-400.0,0.00022191,2]
[383512982,1756967457137,-400.0,0.00022191,2]
[383512983,1756967457146,-400.0,0.00022191,2]
[383512984,1756967457156,-400.0,0.00022191,2]
[383512985,1756967457165,-400.0,0.00022191,2]
[383512986,1756967457174,-400.0,0.00022191,2]
[383512987,1756967457183,-400.0,0.00022191,2]
[383512988,1756967457192,-400.0,0.00022191,2]
[383512989,1756967457201,-400.0,0.00022191,2]
[383512990,1756967457211,-400.0,0.00022191,2]
[383512991,1756967457220,-400.0,0.00022191,2]
[383512992,1756967457229,-400.0,0.00022191,2]
[383512993,1756967457238,-400.0,0.00022191,2]
[383512994,1756967457247,-84.46761364,0.00022191,2]
[383512995,1756967457295,-385.53536681,0.00022191,2]
[383512996,1756967457305,-400.0,0.00022191,2]
[383512997,1756967457314,-409.4726106,0.00022191,2]
[383512998,1756967457323,-400.0,0.00022191,2]
[383512999,1756967457332,-400.0,0.00022191,2]
[383513000,1756967457341,-400.0,0.00022191,2]
[383513001,1756967457351,-400.0,0.00022191,2]
[383513002,1756967457360,-269.45116066,0.00022191,2]
[383513003,1756967457379,-130.54883934,0.00022191,2]
[383513004,1756967457388,-400.0,0.00022191,2]
[383513005,1756967457398,-404.51358443,0.00022191,2]
[383513006,1756967457407,-400.0,0.00022191,2]
[383513007,1756967457417,-400.0,0.00022191,2]
[383513008,1756967457426,-400.0,0.00022191,2]
[383513009,1756967457435,-400.0,0.00022191,2]
[383513010,1756967457444,-410.254878,0.00022191,2]
[383513011,1756967457454,-400.0,0.00022191,2]
[383513012,1756967457464,-400.0,0.00022191,2]
[383513013,1756967457473,-400.0,0.00022191,2]
[383513014,1756967457483,-403.40749837,0.00022191,2]
[383513015,1756967457493,-400.0,0.00022191,2]
[383513016,1756967457503,-274.86115891,0.00022191,2]
[383513017,1756967457513,-400.0,0.00022191,2]
[383513018,1756967457523,-400.0,0.00022191,2]
[383513019,1756967457532,-400.0,0.00022191,2]
[383513020,1756967457541,-399.74321985,0.00022191,2]
[383513021,1756967457554,-56.16678015,0.00022191,2]
[383513022,1756967457564,-400.0,0.00022191,2]
[383513023,1756967457573,-400.0,0.00022191,2]
[383513024,1756967457583,-400.0,0.00022191,2]
[383513025,1756967457593,-400.0,0.00022191,2]
[383513026,1756967457602,-400.0,0.00022191,2]
[383513027,1756967457612,-400.0,0.00022191,2]
[383513028,1756967457621,-400.0,0.00022191,2]
[383513029,1756967457631,-400.0,0.00022191,2]
[383513030,1756967457640,-400.0,0.00022191,2]
[383513031,1756967457650,-400.0,0.00022191,2]
[383513032,1756967457659,-400.0,0.00022191,2]
[383513033,1756967457668,-400.0,0.00022191,2]
[383513034,1756967457678,-400.0,0.00022191,2]
[383513035,1756967457687,-400.0,0.00022191,2]
[383513036,1756967457697,-400.0,0.00022191,2]
[383513037,1756967457712,-400.0,0.00022191,2]
[383513038,1756967457722,-400.0,0.00022191,2]
[383513039,1756967457732,-400.0,0.00022191,2]
[383513040,1756967457742,-400.0,0.00022191,2]
[383513041,1756967457752,-400.0,0.00022191,2]
[383513042,1756967457762,-400.0,0.00022191,2]
[383513043,1756967457772,-400.0,0.00022191,2]
[383513044,1756967457783,-221.38188137,0.00022191,2]
[383513045,1756967457797,-178.61811863,0.00022191,2]
[383513046,1756967457807,-400.0,0.00022191,2]
[383513047,1756967457818,-400.0,0.00022191,2]
[383513048,1756967457827,-409.1342344,0.00022191,2]
[383513049,1756967457836,-58.81579235,0.00022191,2]
[383513050,1756967458055,-341.18420765,0.00022191,2]
[383513051,1756967458065,-400.0,0.00022191,2]
[383513052,1756967458075,-400.0,0.00022191,2]
[383513053,1756967458085,-195.37609845,0.00022191,2]
[383513054,1756967458424,1000.0,8.2e-07,120]
[383513055,1756967459493,-1040.00791865,0.0001979,2]
[383513056,1756967462151,1000.0,8.2e-07,120]
[383513057,1756967469385,-400.0,0.00019577,2]
[383513058,1756967472192,1000.0,8.2e-07,120]
[383513059,1756967476845,-100.0,0.00019577,2]
[383513060,1756967476883,-200.0,0.00019577,2]
[383513061,1756967479584,1000.0,8.2e-07,120]
[383513062,1756967484414,-100.0,0.00019577,2]
[383513063,1756967484442,-200.0,0.00019577,2]
[383513064,1756967488294,1000.0,8.2e-07,120]
[383513065,1756967491425,-400.0,0.0001979,2]
[383513066,1756967497270,1000.0,8.2e-07,120]
[383513067,1756967498513,-400.0,0.0001979,2]
[383513068,1756967509405,1000.0,8.2e-07,120]
[383513069,1756967516380,-444.35208135,0.0001979,2]
[383513070,1756967516418,-49969.48709289,0.000199,2]
[383513071,1756967521506,1000.0,8.2e-07,120]
[383513072,1756967533912,1000.0,8.2e-07,120]
[383513075,1756967728065,247.06,0.00013699,2]
[383513091,1756967833035,155.02,0.00010077,2]
[383513092,1756967833290,155.02,0.00011197,2]
[383513093,1756967833669,155.02,0.00012317,2]
[383513094,1756967833992,155.02,0.00013436,2]
[383513095,1756967834181,155.02,0.00014556,2]
[383513096,1756967834379,155.02,0.00015676,2]
[383513097,1756967834578,155.02,0.00016795,2]
[383513098,1756967834778,155.02,0.00017915,2]
[383513107,1756968001295,-152.66459406,0.00019035,2]
[383513108,1756968011397,1000.0,0.0003,120]
[383513110,1756968026398,-400.0,0.00019035,2]
[383513111,1756968027228,-303.588315,0.00019035,2]
[383513112,1756968030946,1000.0,0.0003,120]
[383513113,1756968031097,-717.8997783,0.00019035,2]
[383513114,1756968032707,-250.44284524,0.00019034,2]
[383513115,1756968032729,-231.65737646,0.00019035,2]
[383513116,1756968034170,-85.52921193,0.00019034,2]
[383513117,1756968034487,-228.94157614,0.00019034,2]
[383513118,1756968034539,-167.53844527,0.00019034,2]
[383513119,1756968037997,-151.11304773,0.00019034,2]
[383513121,1756968040816,-181.348507,0.00019034,2]
[383513122,1756968040851,-8.22771116,0.00019034,2]
[383513123,1756968041285,-162.02303188,0.00019034,2]
[383513124,1756968041384,-75.95393624,0.00019034,2]
[383513125,1756968043574,-88.54959956,0.00019034,2]
[383513126,1756968043597,-71.87921876,0.00019035,2]
[383513127,1756968045855,-536.94195291,0.00019035,2]
[383513128,1756968048464,-400.0,0.00019035,2]
[383513129,1756968048708,-240.59300662,0.00019035,2]
[383513130,1756968054030,-258.14259392,0.00019035,2]
[383513131,1756968055485,-400.0,0.00019035,2]
[383513132,1756968056464,-205.72046664,0.00019035,2]
[383513133,1756968058895,-495.622,0.00019035,2]
[383513134,1756968061708,-408.11,0.00019035,2]
[383513136,1756968062564,-400.0,0.00019035,2]
[383513137,1756968063419,-300.0,0.00019035,2]
[383513138,1756968069680,-284.93908807,0.00019035,2]
[383513139,1756968072143,-203.34909702,0.00019035,2]
[383513140,1756968075617,-166.72211252,0.00019035,2]
[383513141,1756968077217,-400.0,0.00019035,2]
[383513142,1756968078742,-1000.0,0.00019035,2]
[383513143,1756968080911,-30.56408378,0.00019035,2]
[383513144,1756968080936,-2.35540594,0.00019035,2]
[383513147,1756968116885,-155.95682332,0.00019339,2]
[383513200,1756968469277,-0.04317668,0.00019339,2]
[383513201,1756968469296,-0.04317668,0.00019339,2]
[383513202,1756968469312,-403.19467012,0.00019339,2]
[383513203,1756968477824,-400.0,0.00019339,2]
[383513206,1756968484986,-400.0,0.00019339,2]
[383513209,1756968492283,-200.0,0.00019339,2]
[383513211,1756968499357,-200.0,0.00019339,2]
[383513212,1756968506971,-400.0,0.00019339,2]
[383513214,1756968514328,-400.0,0.0001913,2]
[383513215,1756968521083,-191.11895223,0.0001913,2]
[383513216,1756968528139,-49.55,0.0001908,2]
[383513217,1756968528158,-150.45,0.0001908,2]
[383513218,1756968528167,-49.55,0.0001913,2]
[383513220,1756968535232,-208.34155622,0.0001913,2]
[383513221,1756968542269,-168.16162046,0.0001913,2]
[383513222,1756968549335,-168.44,0.0001913,2]
[383513224,1756968556947,-400.0,0.0001913,2]
[383513225,1756968564653,-10.51474368,0.0001913,2]
[383513226,1756968564666,-171.04312741,0.0001913,2]
[383513227,1756968564676,-10.51474368,0.00019338,2]
[383513228,1756968571682,-55.50606134,0.00019238,2]
[383513229,1756968571695,-288.98787732,0.00019238,2]
[383513230,1756968571704,-55.50606134,0.00019338,2]
[383513232,1756968579429,-180.39,0.00019338,2]
[383513233,1756968586464,-53.58919498,0.00019338,2]
[383513234,1756968586488,-53.58919498,0.00019338,2]
[383513235,1756968586501,-289.38161004,0.00019338,2]
[383513236,1756968593980,-36.09080502,0.00019338,2]
[383513237,1756968593993,-120.93838996,0.00019338,2]
[383513238,1756968594002,-36.09080502,0.00019338,2]
[383513240,1756968601063,-149.62359536,0.00019138,2]
[383513241,1756968601095,-50.37640464,0.00019138,2]
[383513242,1756968601104,-149.62359536,0.00019338,2]
[383513243,1756968608300,-114.28559962,0.00019338,2]
[383513244,1756968615635,-249.58041868,0.00019338,2]
[383513245,1756968622796,-150.41958132,0.00019338,2]
[383513246,1756968622836,-98.20083736,0.00019338,2]
[383513248,1756968629980,-101.64083736,0.00019338,2]
[383513249,1756968630008,-196.71832528,0.00019338,2]
[383513251,1756968632121,-180.39,0.00019338,2]
[383513252,1756968632131,-193.12,0.00019338,2]
[383513253,1756968632141,-349.62359536,0.00019338,2]
[383513254,1756968632151,-2196.7621532,0.00019339,2]
[383513255,1756968632160,-235.30999167,0.00019787,2]
[383513256,1756968632170,-1200.0,0.00019787,2]
[383513257,1756968632180,-1200.0,0.00019788,2]
[383513258,1756968632189,-300.0,0.00019788,2]
[383513259,1756968632199,-477.0,0.00019789,2]
[383513260,1756968632208,-1660.47419242,0.00019789,2]
[383513261,1756968632217,-1000.0,0.00019789,2]
[383513262,1756968632226,-1855.25719523,0.0001979,2]
[383513263,1756968632279,-68397.42989918,0.0001979,2]
[383513264,1756968632291,-32592.78089562,0.0001979,2]
[383513265,1756968632300,-500.72772509,0.000198,2]
[383513266,1756968632311,-4374.06274636,0.000198,2]
[383513267,1756968632323,-12964.603459,0.00019833,2]
[383513268,1756968632334,-26512.6271252,0.00019833,2]
[383513269,1756968632345,-200.0,0.00019888,2]
[383513270,1756968632357,-151.0,0.00019888,2]
[383513271,1756968632368,-151.0,0.00019888,2]
[383513272,1756968632378,-151.0,0.00019888,2]
[383513273,1756968632389,-151.0,0.00019888,2]
[383513274,1756968632399,-151.0,0.00019888,2]
[383513275,1756968632410,-151.0,0.00019888,2]
[383513277,1756968632420,-151.0,0.00019888,2]
[383513278,1756968632431,-151.0,0.00019888,2]
[383513280,1756968632442,-500.0,0.00019888,2]
[383513281,1756968632452,-277.42236115,0.00019888,2]
[383513282,1756968632461,-182.73,0.0001989,2]
[383513283,1756968632471,-272.47,0.0001989,2]
[383513284,1756968632481,-92712.53874159,0.000199,2]
[383513285,1756968632493,-6881.72931045,0.000199,2]
[383513286,1756968632531,-847.26018224,0.000199,2]
[383513293,1756968632597,-998.45759999,0.000199,2]
[383513297,1756968632628,-294.88941843,0.000199,2]
[383513300,1756968632639,-5918.15162005,0.000199,2]
[383513305,1756968632701,-3829.84522082,0.000199,2]
[383513311,1756968638054,-280.12955165,0.00019786,2]
[383513312,1756968638065,-222.05267984,0.00019786,2]
[383513313,1756968638075,-29595.23511354,0.000199,2]
[383513314,1756968638085,-500.0,0.000199,2]
[383513315,1756968638095,-657.37746578,0.000199,2]
[383513316,1756968638107,-2748.45,0.00019957,2]
[383513317,1756968638117,-160.0,0.00019963,7]
[383513318,1756968638126,-4102.0463212,0.00019967,2]
[383513319,1756968638135,-168.44,0.00019978,2]
[383513320,1756968638144,-459.62982932,0.0002,2]
[383513321,1756968638153,-161.0,0.0002,2]
[383513322,1756968638163,-248.93515351,0.00020018,5]
[383513323,1756968638172,-7974.26,0.00020032,2]
[383513324,1756968638183,-500.0,0.0002004,2]
[383513325,1756968638192,-500.0,0.0002004,2]
[383513326,1756968638202,-500.0,0.0002004,2]
[383513327,1756968638211,-500.0,0.0002004,2]
[383513328,1756968638221,-167.39927255,0.00020055,2]
[383513329,1756968638230,-5646.3,0.00020079,2]
[383513330,1756968638241,-1673.56,0.00020106,2]
[383513331,1756968638250,-2184.22,0.00020154,2]
[383513332,1756968638260,-1884.37,0.00020154,2]
[383513333,1756968638271,-150.0,0.00020154,2]
[383513334,1756968638282,-98860.27,0.00020154,2]
[383513335,1756968638292,-155.02,0.00020155,2]
[383513336,1756968638302,-247.06,0.00020187,2]
[383513337,1756968638311,-666.0,0.00020227,3]
[383513338,1756968638321,-171.8,0.00020308,2]
[383513339,1756968638330,-2036.04011797,0.00020348,2]
[383513340,1756968638341,-4374.06274629,0.00020356,2]
[383513341,1756968638351,-272.47,0.00020372,2]
[383513342,1756968638362,-250.0,0.00020377,2]
[383513343,1756968638373,-82728.75772318,0.00020382,2]
[383513344,1756968638382,-1000.0,0.00020588,2]
[383513345,1756968638392,-1000.0,0.00020588,2]
[383513346,1756968638402,-167.15,0.0002063,2]
[383513347,1756968638412,-193.36006919,0.00020672,2]
[383513348,1756968638424,-322.6107,0.00020672,2]
[383513349,1756968638438,-695.39793187,0.00020672,2]
[383513351,1756968638447,-267.46074303,0.00020672,2]
[383513353,1756968638456,-151.0,0.00020672,2]
[383513355,1756968638466,-151.0,0.00020672,2]
[383513357,1756968638475,-151.0,0.00020672,2]
[383513385,1756968638723,-198.29,0.00020692,2]
[383513387,1756968638732,-2036.04011792,0.00020843,2]
[383513389,1756968638743,-1825.33,0.00020852,2]
[383513391,1756968638753,-4374.06274629,0.00020911,2]
[383513393,1756968638763,-595.24,0.00020912,2]
[383513395,1756968638773,-2268.62,0.0002107,2]
[383513397,1756968638782,-2000.0,0.000211,2]
[383513399,1756968638791,-3209.00804426,0.00021106,2]
[383513401,1756968638800,-1000.0,0.00021136,2]
[383513403,1756968638810,-1000.0,0.00021136,2]
[383513405,1756968638819,-541.14,0.00021178,2]
[383513407,1756968638829,-250.0,0.00021273,2]
[383513409,1756968638838,-196.98,0.00021291,2]
[383513410,1756968638848,-2036.04011792,0.00021337,2]
[383513412,1756968638860,-657.37746574,0.00021348,2]
[383513415,1756968638871,-4374.06274629,0.00021467,2]
[383513416,1756968638881,-343.85,0.00021478,2]
[383513418,1756968638891,-404.2,0.00021478,2]
[383513420,1756968638902,-541.14,0.00021478,2]
[383513422,1756968638913,-150.0,0.00021478,2]
[383513425,1756968638924,-1626.0,0.00021552,2]
[383513427,1756968638933,-157.19430814,0.000216,2]
[383513429,1756968638942,-150.0,0.000216,2]
[383513431,1756968638952,-150.0,0.000216,2]
[383513432,1756968638961,-154.84829785,0.000216,2]
[383513435,1756968638971,-152.66363447,0.000216,2]
[383513437,1756968638981,-150.0,0.000216,2]
[383513439,1756968638991,-286.87518804,0.000216,2]
[383513440,1756968639000,-156.49384004,0.000216,2]
[383513442,1756968639010,-155.82522781,0.000216,2]
[383513444,1756968639019,-154.3065894,0.000216,2]
[383513446,1756968639028,-158.16866755,0.000216,2]
[383513448,1756968639037,-250.76573668,0.000216,2]
[383513450,1756968639047,-150.0,0.000216,2]
[383513452,1756968639057,-1680.0,0.00021654,2]
[383513454,1756968639066,-200.0,0.000217,7]
[383513456,1756968639076,-150.0,0.00021717,2]
[383513458,1756968639086,-500.0,0.00021717,2]
[383513460,1756968639097,-1091.0,0.00021717,2]
[383513462,1756968639107,-429.0,0.00021717,2]
[383513464,1756968639117,-150.01,0.00021729,2]
[383513466,1756968639127,-500.0,0.000218,7]
[383513468,1756968639136,-5000.0,0.00021817,2]
[383513470,1756968639146,-1526.204,0.00021817,2]
[383513472,1756968639156,-164.018,0.00021817,2]
[383513474,1756968639165,-500.0,0.00021817,2]
[383513476,1756968639175,-500.0,0.00021817,2]
[383513478,1756968639184,-500.0,0.00021817,2]
[383513480,1756968639193,-150.0,0.00021817,2]
[383513482,1756968639202,-150.0,0.00021817,2]
[383513484,1756968639212,-500.0,0.00021817,2]
[383513486,1756968639221,-631.0,0.00021817,2]
[383513488,1756968639230,-150.0,0.00021817,2]
[383513490,1756968639243,-500.0,0.00021817,2]
[383513492,1756968639253,-500.0,0.00021817,2]
[383513494,1756968639262,-500.0,0.00021817,2]
[383513496,1756968639271,-150.0,0.00021817,2]
[383513498,1756968639281,-500.0,0.00021817,2]
[383513500,1756968639291,-1010.0,0.00021817,2]
[383513502,1756968639300,-2036.04011792,0.00021832,2]
[383513504,1756968639309,-150.0,0.00021854,2]
[383513506,1756968639318,-509.34158003,0.00021854,2]
[383513508,1756968639328,-1091.0,0.00021854,2]
[383513510,1756968639338,-429.0,0.00021854,2]
[383513512,1756968639349,-800.0,0.00021898,2]
[383513514,1756968639358,-700.0,0.000219,7]
[383513516,1756968639367,-771.58366799,0.00021907,2]
[383513518,1756968639377,-1000.0,0.00021907,2]
[383513520,1756968639387,-500.0,0.00021916,2]
[383513522,1756968639396,-150.0,0.00021916,2]
[383513524,1756968639406,-500.0,0.00021916,2]
[383513526,1756968639415,-150.0,0.00021916,2]
[383513528,1756968639424,-150.0,0.00021916,2]
[383513530,1756968639436,-150.0,0.00021916,2]
[383513532,1756968639446,-500.0,0.00021916,2]
[383513534,1756968639454,-500.0,0.00021916,2]
[383513536,1756968639463,-150.0,0.00021916,2]
[383513538,1756968639473,-150.0,0.00021916,2]
[383513540,1756968639483,-152.02155019,0.00021916,2]
[383513542,1756968639493,-405.65732228,0.00021917,2]
[383513544,1756968639502,-402.090457,0.00021917,2]
[383513546,1756968639511,-414.1629607,0.00021917,2]
[383513548,1756968639520,-400.0,0.00021917,2]
[383513550,1756968639530,-401.69292096,0.00021917,2]
[383513552,1756968639539,-401.84489862,0.00021917,2]
[383513554,1756968639549,-157.17020479,0.00021917,2]
[383513556,1756968639558,-400.0,0.00021917,2]
[383513558,1756968639567,-492.40488804,0.00021917,2]
[383513560,1756968639576,-400.98989996,0.00021917,2]
[383513562,1756968639585,-400.0,0.00021917,2]
[383513564,1756968639594,-401.87503571,0.00021917,2]
[383513566,1756968639603,-400.0,0.00021917,2]
[383513568,1756968639626,-400.0,0.00021917,2]
[383513570,1756968639639,-400.0,0.00021917,2]
[383513572,1756968639649,-404.23711426,0.00021917,2]
[383513574,1756968639658,-401.13953025,0.00021917,2]
[383513576,1756968639667,-400.0,0.00021917,2]
[383513578,1756968639677,-400.0,0.00021917,2]
[383513580,1756968639686,-400.0,0.00021917,2]
[383513582,1756968639696,-401.78909166,0.00021917,2]
[383513584,1756968639705,-402.6942866,0.00021917,2]
[383513586,1756968639715,-520.90986342,0.00021917,2]
[383513588,1756968639724,-402.29718053,0.00021917,2]
[383513590,1756968639735,-400.0,0.00021917,2]
[383513592,1756968639744,-400.0,0.00021917,2]
[383513594,1756968639753,-400.0,0.00021917,2]
[383513596,1756968639762,-400.0,0.00021917,2]
[383513598,1756968639772,-401.39604373,0.00021917,2]
[383513600,1756968639781,-400.0,0.00021917,2]
[383513601,1756968639791,-400.0,0.00021917,2]
[383513604,1756968639800,-400.0,0.00021917,2]
[383513605,1756968639810,-400.0,0.00021917,2]
[383513607,1756968639819,-400.0,0.00021917,2]
[383513609,1756968639828,-401.47658901,0.00021917,2]
[383513611,1756968639837,-400.0,0.00021917,2]
[383513614,1756968639847,-400.0,0.00021917,2]
[383513616,1756968639856,-400.0,0.00021917,2]
[383513618,1756968639865,-400.0,0.00021917,2]
[383513620,1756968639876,-400.0,0.00021917,2]
[383513622,1756968639885,-400.0,0.00021917,2]
[383513624,1756968639894,-400.0,0.00021917,2]
[383513626,1756968639903,-400.0,0.00021917,2]
[383513628,1756968639912,-400.0,0.00021917,2]
[383513629,1756968639922,-405.36670514,0.00021917,2]
[383513632,1756968639931,-400.0,0.00021917,2]
[383513634,1756968639940,-406.85449066,0.00021917,2]
[383513635,1756968639950,-400.0,0.00021917,2]
[383513638,1756968639960,-406.71190684,0.00021917,2]
[383513639,1756968639969,-400.0,0.00021917,2]
[383513641,1756968639978,-400.0,0.00021917,2]
[383513644,1756968639989,-400.0,0.00021917,2]
[383513645,1756968639998,-500.0,0.00021917,2]
[383513648,1756968640007,-500.0,0.00021917,2]
[383513650,1756968640017,-500.0,0.00021917,2]
[383513652,1756968640027,-500.0,0.00021917,2]
[383513654,1756968640036,-500.0,0.00021917,2]
[383513656,1756968640046,-500.0,0.00021917,2]
[383513658,1756968640055,-500.0,0.00021917,2]
[383513660,1756968640064,-400.0,0.00021917,2]
[383513662,1756968640074,-500.0,0.00021917,2]
[383513664,1756968640083,-400.0,0.00021917,2]
[383513666,1756968640092,-400.0,0.00021917,2]
[383513668,1756968640101,-400.0,0.00021917,2]
[383513670,1756968640111,-403.0457783,0.00021917,2]
[383513672,1756968640120,-400.0,0.00021917,2]
[383513674,1756968640129,-400.0,0.00021917,2]
[383513676,1756968640138,-400.0,0.00021917,2]
[383513678,1756968640148,-400.0,0.00021917,2]
[383513680,1756968640157,-400.0,0.00021917,2]
[383513682,1756968640166,-402.82599791,0.00021917,2]
[383513684,1756968640176,-400.0,0.00021917,2]
[383513686,1756968640185,-404.28866568,0.00021917,2]
[383513687,1756968640194,-400.0,0.00021917,2]
[383513688,1756968640203,-400.0,0.00021917,2]
[383513689,1756968640212,-267.92332781,0.00021917,2]
[383513690,1756968640222,-400.0,0.00021917,2]
[383513691,1756968640231,-400.0,0.00021917,2]
[383513692,1756968640242,-400.0,0.00021917,2]
[383513693,1756968640252,-400.0,0.00021917,2]
[383513694,1756968640262,-400.0,0.00021917,2]
[383513695,1756968640272,-400.0,0.00021917,2]
[383513696,1756968640281,-400.0,0.00021917,2]
[383513698,1756968640291,-400.0,0.00021917,2]
[383513700,1756968640300,-400.0,0.00021917,2]
[383513702,1756968640310,-400.0,0.00021917,2]
[383513704,1756968640320,-400.0,0.00021917,2]
[383513706,1756968640329,-400.0,0.00021917,2]
[383513708,1756968640339,-400.0,0.00021917,2]
[383513710,1756968640348,-400.0,0.00021917,2]
[383513712,1756968640358,-402.67839761,0.00021917,2]
[383513714,1756968640367,-400.0,0.00021917,2]
[383513716,1756968640376,-400.0,0.00021917,2]
[383513718,1756968640385,-400.0,0.00021917,2]
[383513720,1756968640394,-400.0,0.00021917,2]
[383513722,1756968640404,-402.34916431,0.00021917,2]
[383513724,1756968640413,-400.0,0.00021917,2]
[383513726,1756968640423,-400.0,0.00021917,2]
[383513728,1756968640434,-400.0,0.00021917,2]
[383513730,1756968640446,-400.0,0.00021917,2]
[383513732,1756968640455,-400.0,0.00021917,2]
[383513734,1756968640464,-400.0,0.00021917,2]
[383513736,1756968640475,-400.0,0.00021917,2]
[383513738,1756968640485,-400.0,0.00021917,2]
[383513740,1756968640494,-403.0755035,0.00021917,2]
[383513742,1756968640504,-402.58071098,0.00021917,2]
[383513743,1756968640516,-400.0,0.00021917,2]
[383513745,1756968640525,-471.73622934,0.00021917,2]
[383513747,1756968640535,-400.0,0.00021917,2]
[383513749,1756968640544,-400.0,0.00021917,2]
[383513751,1756968640554,-400.0,0.00021917,2]
[383513753,1756968640564,-400.0,0.00021917,2]
[383513755,1756968640573,-400.0,0.00021917,2]
[383513757,1756968640582,-400.0,0.00021917,2]
[383513759,1756968640592,-400.0,0.00021917,2]
[383513761,1756968640601,-400.0,0.00021917,2]
[383513763,1756968640611,-400.0,0.00021917,2]
[383513765,1756968640620,-400.0,0.00021917,2]
[383513767,1756968640630,-403.49352411,0.00021917,2]
[383513769,1756968640640,-406.45948702,0.00021917,2]
[383513771,1756968640650,-400.0,0.00021917,2]
[383513773,1756968640660,-400.0,0.00021917,2]
[383513775,1756968640670,-403.13800929,0.00021917,2]
[383513777,1756968640680,-400.0,0.00021917,2]
[383513779,1756968640689,-404.57719068,0.00021917,2]
[383513781,1756968640699,-400.0,0.00021917,2]
[383513783,1756968640708,-400.0,0.00021917,2]
[383513785,1756968640719,-219.46785859,0.00021917,2]
[383513787,1756968640728,-400.0,0.00021917,2]
[383513789,1756968640741,-400.0,0.00021917,2]
[383513791,1756968640750,-407.75119627,0.00021917,2]
[383513793,1756968640760,-400.0,0.00021917,2]
[383513795,1756968640770,-400.0,0.00021917,2]
[383513797,1756968640781,-400.0,0.00021917,2]
[383513799,1756968640790,-400.0,0.00021917,2]
[383513801,1756968640800,-400.0,0.00021917,2]
[383513803,1756968640810,-400.0,0.00021917,2]
[383513805,1756968640820,-402.81185272,0.00021917,2]
[383513807,1756968640830,-402.91022107,0.00021917,2]
[383513808,1756968640839,-400.0,0.00021917,2]
[383513810,1756968640850,-400.0,0.00021917,2]
[383513812,1756968640859,-400.0,0.00021917,2]
[383513815,1756968640870,-400.0,0.00021917,2]
[383513816,1756968640880,-400.0,0.00021917,2]
[383513819,1756968640889,-400.0,0.00021917,2]
[383513821,1756968640899,-400.0,0.00021917,2]
[383513823,1756968640911,-400.0,0.00021917,2]
[383513824,1756968640923,-400.0,0.00021917,2]
[383513827,1756968640932,-400.0,0.00021917,2]
[383513828,1756968640942,-400.0,0.00021917,2]